Cogmind - Beta 17 @@@ ROGUE MODE // 2026.07.04 @ 16:29:26 // AFD2020/Player2 Player: Michael Result: Core destroyed Performance ------------- Evolutions (0) 0 Regions Visited (2) 400 Robots Destroyed (4) 20 Value Destroyed (137) 137 Prototype IDs (0) 0 Alien Tech Used (0) 0 Bonus (266) 266 TOTAL SCORE: 823 Bonus ------- Follower Combat Kills 302 Friendly Fire -36 Cogmind --------- Core Integrity 0/250 Matter 209/300 Energy 100/100 System Corruption 0% Temperature Cool (0) Movement Rolling (95) Ox1 Location -10/Subcaves Parts ------- > --- POWER (1) -------- (None) > --- PROPULSION (2) --- Wheel > --- UTILITY (2) ------ Medium Storage Unit > --- WEAPON (2) ------- Light Assault Rifle Light Assault Rifle > --- INVENTORY (10) --- Light Treads Large Storage Unit Structural Scanner Signal Interpreter Terrain Scanner Assault Rifle Peak State ------------ > --- POWER ------------ Ion Engine > --- PROPULSION ------- Aluminum Leg Aluminum Leg > --- UTILITY ---------- Small Storage Unit Light Armor Plating > --- WEAPON ----------- Assault Rifle Assault Rifle > --- INVENTORY -------- Light Treads Wheel Assault Rifle [Rating: 7] Favorites ----------- Power Ion Engine Engine Ion Engine Propulsion Aluminum Leg Leg Aluminum Leg Wheel Wheel Utility Medium Storage Unit Storage Medium Storage Unit Protection Light Armor Plating Weapon Assault Rifle Ballistic Gun Assault Rifle Build | -11 -10 -10 ------- Run | Yrd Mat Sub Slots Evolved . | . . . Power . | . . . Propulsion . | . . . Utility . | . . . Weapon . | . . . Parts Attached 14 | 6 2 6 Power 1 | 1 . . Engine 1 | 1 . . Core . | . . . Reactor . | . . . Propulsion 4 | 2 . 2 Treads . | . . . Leg 3 | 2 . 1 Wheel 1 | . . 1 Hover . | . . . Flight . | . . . Utility 3 | 1 2 . Device . | . . . Storage 2 | 1 1 . Processor . | . . . Hackware . | . . . Protection 1 | . 1 . Artifact . | . . . Weapon 6 | 2 . 4 Energy Gun . | . . . Energy Cannon . | . . . Ballistic Gun 6 | 2 . 4 Ballistic Cannon . | . . . Launcher . | . . . Special Weapon . | . . . Impact Weapon . | . . . Slashing Weapon . | . . . Piercing Weapon . | . . . Special Melee Weapon . | . . . Unidentified Prototypes . | . . . Parts Lost 7 | . . 7 Power 1 | . . 1 Propulsion 3 | . . 3 Utility 1 | . . 1 Weapon 2 | . . 2 Highest Loss Streak 5 | . . 5 To Critical Strikes . | . . . Average Backups 5 | 3 5 6 Power . | . . . Propulsion 2 | 2 2 2 Utility 2 | . 2 4 Weapon . | . . . Tool/Special . | . . . Unused Backups 9 | . 3 6 Power 1 | . 1 . Propulsion 4 | . 2 2 Utility 4 | . . 4 Weapon . | . . . Tool/Special . | . . . Average Slot Usage (%) 89 | . 97 80 Engine 13 | . 14 12 Leg 23 | . 28 18 Storage 14 | . 14 14 Protection 8 | . 11 5 Ballistic Gun 27 | . 28 27 Peak Build Rating 7 | 6 7 7 Average Rating 6 | 4 6 6 On Entrance 4 | . 6 7 Avg Prop Armor Cover (%) . | . . . Naked Turns . | . . . Heaviest Build 22 | 14 22 22 Greatest Support 20 | 20 20 20 Greatest Overweight (x) 2 | 1 1 2 Average Overweight (x) . | . . 1 Largest Inventory Capacity 10 | 8 10 10 Average Capacity 9 | 6 9 10 Most Carried 8 | 5 8 8 Average Carried 5 | 3 5 6 Final Capacity 10 | 8 10 10 Final Carried 8 | 5 8 6 Class Distribution -------------------- 100% | Mutant Dominant Class ---------------- Mutant | -10/Materials Mutant | -10/Subcaves Resources | -11 -10 -10 ----------- Run | Yrd Mat Sub Matter Collected 370 | 221 90 59 Remotely . | . . . Salvage Created 121 | . 52 69 Parts 9 | . 3 6 Haulers Intercepted . | . . . Recyclers Shooed . | . . . Parts Field Recycled . | . . . Retrieved Matter . | . . . Parts Self-Destructed 6 | . . 6 Prevented . | . . . Parts Restored . | . . . Kills | -11 -10 -10 ------- Run | Yrd Mat Sub Combat Hostiles Destroyed 4 | . 1 3 Guns 4 | . 1 3 Classes Destroyed 3 | . 1 2 Swarmer 1 | . . 1 Grunt 1 | . 1 . Subdweller 2 | . . 2 Best Kill Streak 1 | . 1 1 Combat Bots Only 1 | . 1 1 Max Kills in Single Turn 1 | . 1 1 Gunslinging . | . . . Exploded . | . . . Melee . | . . . Uniques/NPCs Destroyed . | . . . Combat | -11 -10 -10 -------- Run | Yrd Mat Sub Hostile Shots Fired 83 | . 18 65 Missed 27 | . 4 23 Hits 56 | . 14 42 Projectile 56 | . 14 42 Critical Strikes 2 | . . 2 Damage Taken 909 | . 178 731 Core 170 | . 37 133 Absorbed by Shields . | . . . Core Remaining (%) 100 | 100 . . Volleys Fired 31 | . 8 23 Largest 2 | . 2 2 Hottest 50 | . 40 50 Shots Fired 61 | . 16 45 Gun 61 | . 16 45 Cannon . | . . . Launcher . | . . . Special . | . . . Kinetic 61 | . 16 45 Thermal . | . . . Explosive . | . . . Electromagnetic . | . . . Robot Hit Streak 8 | . 6 8 Robot Miss Streak 10 | . 1 10 Penetration Max . | . . . Secondary Targets 2 | . . 2 Max Gunslinging Chain 1 | . . 1 Shots Hit Robots 38 | . 12 26 Core Hits 12 | . 4 8 Critical Kills . | . . . Critical Parts Destroyed 2 | . 2 . Critical Strikes 2 | . 2 . Destroy 2 | . 2 . Melee Attacks . | . . . Impact . | . . . Slashing . | . . . Piercing . | . . . Sneak Attacks . | . . . Combat Hostiles . | . . . Follow-up Attacks . | . . . Damage Inflicted 519 | . 178 341 Guns 519 | . 178 341 Cannons . | . . . Explosions . | . . . Melee . | . . . Ramming . | . . . Kinetic 519 | . 178 341 Thermal . | . . . Explosive . | . . . Electromagnetic . | . . . Impact . | . . . Slashing . | . . . Piercing . | . . . Highest Corruption . | . . . Average Corruption . | . . . Corruption Purged . | . . . Corruption Blocked . | . . . Overload Shots . | . . . Overflow Damage . | . . . Projectiles . | . . . Explosions . | . . . Melee . | . . . Knockbacks . | . . . Impact . | . . . Kinetic . | . . . Secondary . | . . . Self-Inflicted Damage . | . . . Shots . | . . . Rammed . | . . . Targets Rammed . | . . . Kicked . | . . . Crushed . | . . . Highest Temperature 26 | . 26 . Average Temperature 16 | . 16 . Received Heat Transfer 306 | . 102 204 Siege Activations . | . . . Martial Activations . | . . . Shielding Activations . | . . . Robots Disrupted . | . . . Combat Hostiles . | . . . Robots Corrupted . | . . . Combat Hostiles . | . . . Parts Fried . | . . . Impact Corruptions . | . . . Robots Melted . | . . . Combat Hostiles . | . . . Parts Melted . | . . . Heat Transferred . | . . . Parts Sabotaged . | . . . Parts Stolen . | . . . Parts Stripped . | . . . Power Chain Reactions . | . . . Alert | -11 -10 -10 ------- Run | Yrd Mat Sub Maximum Alert Level . | . . . Low Security (%) 100 | 100 100 . Level 1 . | . . . Level 2 . | . . . Level 3 . | . . . Level 4 . | . . . Level 5 . | . . . High Security . | . . . Max Security . | . . . Peak Influence 62 | . 62 . Initial . | . . . Average 8 | . 8 . Influence Increases 209 | . 79 130 Destroy 0b10 Robot/C 120 | . 40 80 Destroy Leader 10 | . 10 . Allied During Kill 32 | . 12 20 Successful Hack 17 | . 17 . Lose Combat Pursuer 30 | . . 30 Influence Decreases 163 | . 49 114 Entered New Map 15 | . . 15 Time Decay 88 | . 49 39 Lost Part 60 | . . 60 Squads Dispatched 1 | . 1 . Investigation . | . . . Extermination . | . . . Reinforcement 1 | . 1 . Assault . | . . . Garrison . | . . . Intercept . | . . . Searches Triggered . | . . . Construction Impeded . | . . . Haulers Reinforced . | . . . Active Scanning Responses . | . . . Cargo Convoy Interrupts . | . . . Stealth | -11 -10 -10 --------- Run | Yrd Mat Sub Distress Signals . | . . . Communications Jammed . | . . . Distress Signals . | . . . Times Spotted 25 | . 7 18 Peak Tracking Total 8 | . 3 8 Tactical Retreats 1 | . . 1 Traps | -11 -10 -10 ------- Run | Yrd Mat Sub Traps Triggered . | . . . Indirectly . | . . . Trap Hack Attempts . | . . . Triggered . | . . . Disarmed . | . . . Reprogrammed . | . . . Reused . | . . . Traps Extracted . | . . . Installed . | . . . Triggered . | . . . Machines | -11 -10 -10 ---------- Run | Yrd Mat Sub Machines Disabled 2 | . . 2 Max in Single Turn . | . . . Machines Repaired . | . . . Machines Dismantled . | . . . Machines Sabotaged . | . . . Overloaded Fab Kills . | . . . Hacking | -11 -10 -10 --------- Run | Yrd Mat Sub Machines Accessed 5 | . 5 . Terminals 4 | . 4 . Fabricators . | . . . Repair Stations . | . . . Recycling Units 1 | . 1 . Scanalyzers . | . . . Garrison Access . | . . . Total Hacks 11 | . 11 . Successful 4 | . 4 . Failed 7 | . 7 . Catastrophic 1 | . 1 . Database Lockouts . | . . . Manual 4 | . 4 . Terminals 9 | . 9 . Fabricators . | . . . Repair Stations . | . . . Recycling Units 2 | . 2 . Scanalyzers . | . . . Garrison Access . | . . . Terminal Hacks 4 | . 4 . Branch Access Points 1 | . 1 . Emergency Access Points 1 | . 1 . Hauler Manifests 1 | . 1 . Zone Layout 1 | . 1 . Fabricator Hacks . | . . . Repair Station Hacks . | . . . Recycling Unit Hacks . | . . . Scanalyzer . | . . . Garrison Access Hacks . | . . . Unauthorized Hacks . | . . . Terminals . | . . . Fabricators . | . . . Repair Stations . | . . . Recycling Units . | . . . Scanalyzers . | . . . Garrison Access . | . . . Data Cores Recovered . | . . . Used . | . . . Hacking Detections 5 | . 5 . Full Trace Events . | . . . Feedback Events . | . . . Feedback Blocked . | . . . Robot Schematics Acquired . | . . . Robots Built . | . . . Authchips . | . . . Time . | . . . Total Robot Build Rating . | . . . Part Schematics Acquired . | . . . Parts Built . | . . . Authchips . | . . . Time . | . . . Total Part Build Rating . | . . . Part Studies Acquired . | . . . Parts Repaired . | . . . Time . | . . . Parts Recycled . | . . . Recycled Matter . | . . . Retrieved Matter . | . . . Retrieved Components . | . . . Parts Scanalyzed . | . . . Part Schematics Acquired . | . . . Parts Damaged . | . . . Bothacking | -11 -10 -10 ------------ Run | Yrd Mat Sub Used RIF Installer . | . . . Robots Hacked . | . . . Non-combat . | . . . Combat . | . . . Robot Hacks Applied . | . . . Relay Couplers Released . | . . . Fabnet Peak Effective % . | . . . Robots Rewired . | . . . Allies Hacked . | . . . Hacks Repelled . | . . . Allies | -11 -10 -10 -------- Run | Yrd Mat Sub Total Allies 1 | . 1 . Largest Group 1 | . 1 1 Highest-Rated Group 62 | . 57 62 Highest-Rated Ally 62 | . 57 62 Total Orders . | . . . Ally Attacks 39 | . 4 35 Total Damage 832 | . 59 773 Kills 13 | . 1 12 Allies Corrupted . | . . . Allies Melted . | . . . Intel | -11 -10 -10 ------- Run | Yrd Mat Sub Active Infowar (turns) . | . . . Robot Analysis Total . | . . . Derelict Logs Recovered 1 | . . 1 Drone Launches . | . . . Drone Recoveries . | . . . Exploration | -11 -10 -10 ------------- Run | Yrd Mat Sub Turns Passed 1106 | 56 560 490 Spaces Moved 567 | 38 346 183 Core 7 | 7 . . Treads . | . . . Legs 552 | 31 346 175 Wheels 8 | . . 8 Hover . | . . . Flight . | . . . Fastest Speed 50 | 50 120 95 Average Speed 168 | 108 148 219 Slowest Speed 260 | 120 190 260 Overloaded Moves . | . . . Propulsion Burnouts . | . . . Robots Hopped . | . . . Potential Cave-ins . | . . . Cave-ins Triggered . | . . . Exploration Rate (%) 30 | 3 68 19 Regions Visited 2 Branch Regions 1 Pre-discovered Areas . | . . . Known Exits Taken . | . . . Unknown Exits Taken 2 | 1 1 . Scrap Searched . | . . . Spaces Dug . | . . . Terrain Destroyed . | . . . Melee . | . . . Projectile . | . . . AOE . | . . . Terrain Rammed . | . . . Walls Destroyed . | . . . Machines Disabled . | . . . Actions | -11 -10 -10 --------- Run | Yrd Mat Sub Total 654 | 50 377 227 Wait 27 | 2 12 13 Move 565 | 37 345 183 Hop . | . . . Pick Up 11 | 5 6 . Fast Attach 10 | 6 1 3 Attach 3 | . . 3 Detach 1 | . . 1 Swap 1 | . 1 . Drop 5 | . 4 1 Fire 31 | . 8 23 Melee . | . . . Ram . | . . . Kick . | . . . Crush . | . . . Escape Stasis . | . . . Rewire . | . . . Trap . | . . . Miscellaneous . | . . . Route ------- -11/Scrapyard -10/Materials (discovered 3 exits: [*Mat] / *Min / [*Sub]) -10/Subcaves (discovered 2 exits: [*Mat] / [*Rec]) History --------- Turn | Location | Event 8 | -11/Scrapyard | Discovered new exit (range 15) 57 | -11/Scrapyard | Entered Materials 311 | -10/Materials | Build established: Mutant 335 | -10/Materials | Discovered new exit (range 6) 388 | -10/Materials | Discovered new exit (range 11) 538 | -10/Materials | Identified exit to Mines 587 | -10/Materials | Discovered new exit (range 5) 617 | -10/Materials | Entered Subcaves 703 | -10/Subcaves | Discovered new exit (range 8) 776 | -10/Subcaves | Ambushed by swarm of Subdwellers 812 | -10/Subcaves | Core integrity fell below 50% 847 | -10/Subcaves | Shifting Twisted Machinery released Shrapnel Trap 848 | -10/Subcaves | Lost 5 parts (2n1u2w) 860 | -10/Subcaves | Shifting Twisted Machinery released Sub. Monowheel 1057 | -10/Subcaves | Discovered new exit (range 13) 1062 | -10/Subcaves | Learned Materials emergency access door positions 1072 | -10/Subcaves | Core integrity fell below 20% 1107 | -10/Subcaves | Core destroyed Last Messages --------------- 01089_ HV Slug penetrates 70-5AF(R). 01089_ 70-5AF(R) suffers critical hit (Destroy). 01089_ LD-YN5(R) suffers critical hit (Destroy). 01089_ LD-YN5(R) knocked back. 01090_ 70-5AF(R) affixes Scrap Shield Fragment to Scrap Shield. 01090_ Acquired 2 matter. 01091_ LD-YN5(R) affixes Scrap Shield Fragment to Scrap Shield. 01092_ HV Slug penetrates Wall. 01093_ Acquired Lgt. Assault Rifle. 01095_ HV Slug penetrates 70-5AF(R). 01095_ 70-5AF(R) suffers critical hit (Destroy). 01095_ 70-5AF(R) destroyed. 01098_ Player 2 attaches Sub. Monowheel. 01099_ Player 2 attaches Assault Rifle. 01100_ Player 2 attaches Com. Wheel. 01102_ Flight Unit fries itself beyond repair. 01106_ LD-YN5(R) affixes Scrap Shield Fragment to Scrap Shield. Map ----- +----------------------------------------------------+ | ## ######## ##????????????????????? | | # ####?????????????????? | | # ##????????????????? | | ## # ## #????????????????? | | ## ## #### ### ##???????????????? | | ### #??## #?## "#???????????????? | | ##?# #???## #??# #???????????????? | | #??## ##????# #?# #???????????????? | | #???# #????# ##?# ##??????????????? | | ###???## ???# #??## #??????????????? | | #?????? ?? #?### ####??????????????? | | #?????# ? #### ##???????"" ??????? | | #????#### ##### ##?# ##????????"" "?????? | | #???????##???###??# ##??????? "" ??????? | | ##?????????????????#### ##?????# "" ??????? | | #####?????????????????????## ##???? "????????? | | ???????????????????????????# ##?? #?????????? | | ???????????????????????????# ### #??????????? | | ???????????????????????????## #???????????? | | ???????????????????????????#### #???????????? | | ?????????????????########??# ## #???????????? | | ?????????????????#""" "#??# #???????????? | | ?????????????????#" #?### #; ?????????? | | ?????????????????#" % ###;## ;# ?????? | | ????????????????##" @ ! ????? | | ????????????????#< % %@ *%[! ???? | | ????????????????#; % % [ %*%R #??? | | ????????????????##" % ###% ;#! #???? | | ?????????????????#" #?# ##### ##???? | | ?????????????????#""" "#?## ##????? #????? | | ?????????????????########??# ##?????? ???? | | ???????????????????????????# ###???????? ????? | | ???????????????????????????# #??????????? ????? | | ???????????????????????????###???????????? ??????? | | ?????????????????????????????????????????????????? | | ?????????????????????????????????????????????????? | | ?????????????????????????????????????????????????? | | ?????????????????????????????????????????????????? | | ?????????????????????????????????????????????????? | | ?????????????????????????????????????????????????? | | ?????????????????????????????????????????????????? | | ?????????????????????????????????????????????????? | | ?????????????????????????????????????????????????? | | ?????????????????????????????????????????????????? | | ?????????????????????????????????????????????????? | | ?????????????????????????????????????????????????? | | ?????????????????????????????????????????????????? | | ?????????????????????????????????????????????????? | | ?????????????????????????????????????????????????? | | ?????????????????????????????????????????????????? | +----------------------------------------------------+ Best States ------------- Heat Dissipation 25 Energy Generation 10 Energy Capacity 250 Matter Stores 289 Matter Capacity 300 Sight Range 16 Terrain Scan Density 10 Armor Coverage 150 Evasion (%) 55 Item Schematics ----------------- None Robot Schematics ------------------ None Fabricated ------------ Nothing Repaired ---------- Nothing Studied --------- None Alien Tech Used ----------------- None Achievements -------------- None Challenges ------------ None Player 2 | -11 -10 -10 ---------- Run | Yrd Mat Sub Slots Evolved . | . . . Power . | . . . Propulsion . | . . . Utility . | . . . Weapon . | . . . Parts Attached 21 | . 12 9 Parts Lost 4 | . . 4 Damage Taken 611 | . . 611 Core 91 | . . 91 Player 2/Cogmind (%) 34 | . . 40 Absorbed by Shields . | . . . Damage Inflicted 832 | . 59 773 Player 2/Cogmind (%) 61 | . 24 69 Combat Hostiles Destroyed 11 | . 1 10 Player 2/Cogmind (%) 73 | . 50 76 Game ------ Seed MinesnifferArchitectDevice Manual? 0 Play Time 00:12:22 Cumulative 21.7 hours Start 2026.07.04 @ 16:19:27 End 2026.07.04 @ 16:29:26 Sessions 1 Manual Loads 0 Difficulty Rogue Special Mode AFD2020/Player2 Game No. 24 Rogue 24 Adventurer 0 Explorer 0 Win Type - Total 0 Types 0/0/0/0/0/0/0/0/0/0 Lore% 13 Gallery% 15 Achievement% 22 Wizard Run 0 Options --------- Layout 2 ASCII 0 Keyboard 1 Movement Vi Keybinds 0 Fullscreen 1 Font 24/Terminus Map View 25x22 Zoom Use 99% Tactical HUD 1 Map Filters NONE Filters SHIFT_HUE(270) Steam 0 RUN: 1a3a7b66-ef58-44b3-832d-7da8b699a27c